Cogmind - Beta 15 *** ADVENTURER MODE // 2025.10.10 @ 19:34:25 Player: Gentle Jesus Result: Destroyed by R5-KL9(R) with Subdweller Machine Gun Performance ------------- Evolutions (0) 0 Regions Visited (2) 400 Robots Destroyed (7) 35 Value Destroyed (254) 254 Prototype IDs (0) 0 Alien Tech Used (0) 0 Bonus (0) 0 TOTAL SCORE: 689 Bonus ------- None Cogmind --------- Core Integrity 0/250 Matter 282/300 Energy 100/100 System Corruption 0% Temperature Cool (0) Movement Core (150) Ox2 Location -10/Subcaves Parts ------- > --- POWER (1) -------- (None) > --- PROPULSION (2) --- (None) > --- UTILITY (2) ------ Small Storage Unit > --- WEAPON (2) ------- Medium Laser > --- INVENTORY (8) ---- Subdweller Power Source Hover Unit Assault Rifle Peak State ------------ > --- POWER ------------ Light Ion Engine > --- PROPULSION ------- Aluminum Leg Aluminum Leg > --- UTILITY ---------- Small Storage Unit Seismic Detector > --- WEAPON ----------- Medium Laser Subdweller Machine Gun > --- INVENTORY -------- Ion Engine Hover Unit Assault Rifle [Rating: 8] Favorites ----------- Power Light Ion Engine Engine Light Ion Engine Propulsion Aluminum Leg Leg Aluminum Leg Utility Small Storage Unit Device Seismic Detector Storage Small Storage Unit Weapon Medium Laser Energy Gun Medium Laser Ballistic Gun Subdweller Machine Gun Ballistic Cannon Battle Cannon Build | -11 -10 -10 ------- Run | Yrd Mat Sub Slots Evolved . | . . . Power . | . . . Propulsion . | . . . Utility . | . . . Weapon . | . . . Parts Attached 10 | 7 . 3 Power 2 | 1 . 1 Engine 2 | 1 . 1 Core . | . . . Reactor . | . . . Propulsion 2 | 2 . . Treads . | . . . Leg 2 | 2 . . Wheel . | . . . Hover . | . . . Flight . | . . . Utility 2 | 2 . . Device 1 | 1 . . Storage 1 | 1 . . Processor . | . . . Hackware . | . . . Protection . | . . . Artifact . | . . . Weapon 4 | 2 . 2 Energy Gun 1 | 1 . . Energy Cannon . | . . . Ballistic Gun 2 | 1 . 1 Ballistic Cannon 1 | . . 1 Launcher . | . . . Special Weapon . | . . . Impact Weapon . | . . . Slashing Weapon . | . . . Piercing Weapon . | . . . Special Melee Weapon . | . . . Unidentified Prototypes . | . . . Parts Lost 6 | . . 6 Power 2 | . . 2 Propulsion 2 | . . 2 Utility 1 | . . 1 Weapon 1 | . . 1 Highest Loss Streak 5 | . . 5 To Critical Strikes . | . . . Average Backups 2 | . 1 2 Power . | . 1 . Propulsion . | . . 1 Utility . | . . . Weapon . | . . . Tool/Special . | . . . Unused Backups 2 | . . 2 Power 1 | . . 1 Propulsion 1 | . . 1 Utility . | . . . Weapon . | . . . Tool/Special . | . . . Average Slot Usage (%) 98 | . 100 98 Engine 13 | . 14 13 Leg 27 | . 28 27 Device 13 | . 14 13 Storage 14 | . 14 14 Energy Gun 14 | . 14 14 Ballistic Gun 13 | . 14 13 Peak Build Rating 8 | 7 7 8 Average Rating 7 | 4 7 7 On Entrance 4 | . 7 7 Naked Turns . | . . . Heaviest Build 17 | 13 13 17 Greatest Support 20 | 20 20 20 Greatest Overweight (x) 2 | . . 2 Average Overweight (x) . | . . . Largest Inventory Capacity 8 | 8 8 8 Average Capacity 7 | 7 8 8 Most Carried 3 | 1 2 3 Average Carried 2 | . 1 2 Final Capacity 8 | 8 8 8 Final Carried 3 | 1 2 3 Class Distribution -------------------- 100% | Mutant Dominant Class ---------------- Mutant | -10/Materials Mutant | -10/Subcaves Resources | -11 -10 -10 ----------- Run | Yrd Mat Sub Matter Collected 400 | 242 . 158 Remotely . | . . . Salvage Created 229 | 17 . 212 Parts 13 | 2 . 11 Haulers Intercepted . | . . . Recyclers Shooed . | . . . Parts Field Recycled . | . . . Retrieved Matter . | . . . Parts Self-Destructed 13 | . . 13 Prevented . | . . . Kills | -11 -10 -10 ------- Run | Yrd Mat Sub Combat Hostiles Destroyed 6 | . . 6 Guns 5 | . . 5 Cannons 1 | . . 1 Classes Destroyed 3 | 1 . 2 Tunneler 1 | 1 . . Grunt 1 | . . 1 Subdweller 5 | . . 5 Best Kill Streak 2 | 1 . 2 Combat Bots Only 2 | . . 2 Max Kills in Single Turn 1 | 1 . 1 Gunslinging . | . . . Exploded . | . . . Melee . | . . . Uniques/NPCs Destroyed . | . . . Combat | -11 -10 -10 -------- Run | Yrd Mat Sub Hostile Shots Fired 66 | . . 66 Missed 14 | . . 14 Hits 52 | . . 52 Projectile 52 | . . 52 Critical Strikes 1 | . . 1 Damage Taken 820 | . . 820 Core 253 | . . 253 Absorbed by Shields . | . . . Ignored by Resistances 229 | . . 229 Core Remaining (%) 100 | 100 . . Volleys Fired 43 | 1 . 42 Largest 2 | 2 . 2 Hottest 83 | 70 . 83 Shots Fired 82 | 2 . 80 Gun 66 | 2 . 64 Cannon 16 | . . 16 Launcher . | . . . Special . | . . . Kinetic 39 | 1 . 38 Thermal 43 | 1 . 42 Explosive . | . . . Electromagnetic . | . . . Robot Hit Streak 21 | 1 . 21 Robot Miss Streak 2 | . . 2 Penetration Max . | . . . Secondary Targets . | . . . Shots Hit Robots 54 | 1 . 53 Core Hits 14 | 1 . 13 Critical Kills 1 | . . 1 Critical Parts Destroyed 1 | . . 1 Critical Strikes 8 | . . 8 Burn 5 | . . 5 Destroy 2 | . . 2 Blast 1 | . . 1 Melee Attacks . | . . . Impact . | . . . Slashing . | . . . Piercing . | . . . Sneak Attacks . | . . . Combat Hostiles . | . . . Follow-up Attacks . | . . . Damage Inflicted 796 | 14 . 782 Guns 543 | 14 . 529 Cannons 253 | . . 253 Explosions . | . . . Melee . | . . . Ramming . | . . . Kinetic 471 | 14 . 457 Thermal 325 | . . 325 Explosive . | . . . Electromagnetic . | . . . Impact . | . . . Slashing . | . . . Piercing . | . . . Highest Corruption . | . . . Average Corruption . | . . . Corruption Purged . | . . . Corruption Blocked . | . . . Overload Shots . | . . . Overflow Damage . | . . . Projectiles . | . . . Explosions . | . . . Melee . | . . . Knockbacks 1 | . . 1 Impact . | . . . Kinetic 1 | . . 1 Secondary . | . . . Self-Inflicted Damage . | . . . Shots . | . . . Rammed . | . . . Targets Rammed . | . . . Kicked . | . . . Crushed . | . . . Highest Temperature 9 | 9 . . Average Temperature 6 | 6 . . Received Heat Transfer 153 | . . 153 Siege Activations . | . . . Martial Activations . | . . . Shielding Activations . | . . . Robots Disrupted . | . . . Combat Hostiles . | . . . Robots Corrupted . | . . . Combat Hostiles . | . . . Parts Fried . | . . . Impact Corruptions . | . . . Robots Melted . | . . . Combat Hostiles . | . . . Parts Melted 1 | . . 1 Heat Transferred 1332 | . . 1332 Parts Sabotaged . | . . . Parts Stolen . | . . . Parts Stripped . | . . . Power Chain Reactions . | . . . Alert | -11 -10 -10 ------- Run | Yrd Mat Sub Maximum Alert Level . | . . . Low Security (%) 100 | 100 100 . Level 1 . | . . . Level 2 . | . . . Level 3 . | . . . Level 4 . | . . . Level 5 . | . . . High Security . | . . . Max Security . | . . . Peak Influence 5 | 5 . . Initial . | . . . Average . | . . . Influence Increases 35 | 5 . 30 Destroy 0b10 Robot/C 20 | . . 20 Destroy 0b10 Robot/NC 5 | 5 . . Destroy Leader 10 | . . 10 Influence Decreases 35 | 5 . 30 Time Decay 35 | 5 . 30 Squads Dispatched . | . . . Investigation . | . . . Extermination . | . . . Reinforcement . | . . . Assault . | . . . Garrison . | . . . Intercept . | . . . Searches Triggered . | . . . Construction Impeded . | . . . Haulers Reinforced . | . . . Active Scanning Responses . | . . . Cargo Convoy Interrupts . | . . . Stealth | -11 -10 -10 --------- Run | Yrd Mat Sub Distress Signals . | . . . Communications Jammed . | . . . Distress Signals . | . . . Times Spotted 9 | . . 9 Peak Tracking Total 3 | . . 3 Tactical Retreats 1 | . . 1 Traps | -11 -10 -10 ------- Run | Yrd Mat Sub Traps Triggered . | . . . Indirectly . | . . . Trap Hack Attempts . | . . . Triggered . | . . . Disarmed . | . . . Reprogrammed . | . . . Reused . | . . . Traps Extracted . | . . . Installed . | . . . Triggered . | . . . Machines | -11 -10 -10 ---------- Run | Yrd Mat Sub Machines Disabled . | . . . Max in Single Turn . | . . . Machines Repaired . | . . . Machines Dismantled . | . . . Machines Sabotaged . | . . . Overloaded Fab Kills . | . . . Hacking | -11 -10 -10 --------- Run | Yrd Mat Sub Machines Accessed 1 | . . 1 Terminals . | . . . Fabricators . | . . . Repair Stations . | . . . Recycling Units . | . . . Scanalyzers . | . . . Garrison Access . | . . . Total Hacks 5 | . . 5 Successful 5 | . . 5 Failed . | . . . Catastrophic . | . . . Database Lockouts . | . . . Manual . | . . . Terminals . | . . . Fabricators . | . . . Repair Stations . | . . . Recycling Units . | . . . Scanalyzers . | . . . Garrison Access . | . . . Terminal Hacks 5 | . . 5 Record 5 | . . 5 Fabricator Hacks . | . . . Repair Station Hacks . | . . . Recycling Unit Hacks . | . . . Scanalyzer . | . . . Garrison Access Hacks . | . . . Unauthorized Hacks . | . . . Terminals . | . . . Fabricators . | . . . Repair Stations . | . . . Recycling Units . | . . . Scanalyzers . | . . . Garrison Access . | . . . Data Cores Recovered . | . . . Used . | . . . Hacking Detections . | . . . Full Trace Events . | . . . Feedback Events . | . . . Feedback Blocked . | . . . Robot Schematics Acquired . | . . . Robots Built . | . . . Authchips . | . . . Time . | . . . Total Robot Build Rating . | . . . Part Schematics Acquired . | . . . Parts Built . | . . . Authchips . | . . . Time . | . . . Total Part Build Rating . | . . . Parts Repaired . | . . . Time . | . . . Parts Recycled . | . . . Recycled Matter . | . . . Retrieved Matter . | . . . Retrieved Components . | . . . Parts Scanalyzed . | . . . Part Schematics Acquired . | . . . Parts Damaged . | . . . Bothacking | -11 -10 -10 ------------ Run | Yrd Mat Sub Used RIF Installer . | . . . Robots Hacked . | . . . Non-combat . | . . . Combat . | . . . Robot Hacks Applied . | . . . Relay Couplers Released . | . . . Fabnet Peak Effective % . | . . . Robots Rewired . | . . . Allies Hacked . | . . . Hacks Repelled . | . . . Allies | -11 -10 -10 -------- Run | Yrd Mat Sub Total Allies . | . . . Largest Group . | . . . Highest-Rated Group . | . . . Highest-Rated Ally . | . . . Total Orders . | . . . Ally Attacks . | . . . Total Damage . | . . . Kills . | . . . Allies Corrupted . | . . . Allies Melted . | . . . Intel | -11 -10 -10 ------- Run | Yrd Mat Sub Active Infowar (turns) 1041 | 4 62 975 Seismic 1041 | 4 62 975 Robot Analysis Total . | . . . Derelict Logs Recovered 1 | . . 1 Drone Launches . | . . . Drone Recoveries . | . . . Exploration | -11 -10 -10 ------------- Run | Yrd Mat Sub Turns Passed 1148 | 63 62 1023 Spaces Moved 781 | 42 50 689 Core 6 | 3 . 3 Treads . | . . . Legs 775 | 39 50 686 Wheels . | . . . Hover . | . . . Flight . | . . . Fastest Speed 50 | 50 120 120 Average Speed 119 | 115 120 120 Slowest Speed 150 | 120 120 150 Overloaded Moves . | . . . Propulsion Burnouts . | . . . Robots Hopped . | . . . Potential Cave-ins . | . . . Cave-ins Triggered . | . . . Exploration Rate (%) 19 | 4 15 40 Regions Visited 2 Branch Regions 1 Pre-discovered Areas 1 | . . 1 Known Exits Taken . | . . . Unknown Exits Taken 2 | 1 1 . Scrap Searched 6 | . . 6 Spaces Dug . | . . . Terrain Destroyed . | . . . Melee . | . . . Projectile . | . . . AOE . | . . . Terrain Rammed . | . . . Walls Destroyed . | . . . Machines Disabled . | . . . Actions | -11 -10 -10 --------- Run | Yrd Mat Sub Total 906 | 51 52 803 Wait 68 | 1 2 65 Move 779 | 41 49 689 Hop . | . . . Pick Up 4 | 1 1 2 Fast Attach 7 | 7 . . Attach 2 | . . 2 Detach . | . . . Swap 2 | . . 2 Drop 1 | . . 1 Fire 43 | 1 . 42 Melee . | . . . Ram . | . . . Kick . | . . . Crush . | . . . Escape Stasis . | . . . Rewire . | . . . Trap . | . . . Miscellaneous . | . . . Route ------- -11/Scrapyard -10/Materials -10/Subcaves (discovered 1 exit: [*Mat]) History --------- Turn | Location | Event 30 | -11/Scrapyard | Discovered new exit (range 14) 64 | -11/Scrapyard | Entered Materials 121 | -10/Materials | Discovered new exit (range 5) 126 | -10/Materials | Entered Subcaves 204 | -10/Subcaves | A swath of the cavern ceiling suddenly collapsed 242 | -10/Subcaves | Shifting Twisted Machinery released Mak. System Restoration Module 290 | -10/Subcaves | Shifting Twisted Machinery released Sub. Machine Gun 309 | -10/Subcaves | Build established: Mutant 588 | -10/Subcaves | Visited Clippyterm 592 | -10/Subcaves | Learned Factory fabricator intel 592 | -10/Subcaves | Learned Factory emergency access door positions 801 | -10/Subcaves | Shifting Twisted Machinery released Sub. Shrapnel Launcher 803 | -10/Subcaves | Shifting Twisted Machinery released Sub. Monowheel 900 | -10/Subcaves | Discovered new exit (range 11) 1092 | -10/Subcaves | Visited 4L-MR0's lab 1119 | -10/Subcaves | Core integrity fell below 50% 1138 | -10/Subcaves | Core integrity fell below 20% 1149 | -10/Subcaves | Destroyed by R5-KL9(R) with Subdweller Machine Gun Last Messages --------------- Acquired 15 matter. Acquired Battle Cannon. Acquired 15 matter. Acquired 5 matter. Seismic Detector destroyed. Acquired 5 matter. WN-GT7(R) knocked back. Acquired 1 matter. Destroyed Scrap Shield. WN-GT7(R) suffers critical hit (Burn). WN-GT7(R) destroyed. Aluminum Leg destroyed. XM-7X0(R) suffers critical hit (Burn). XM-7X0(R) Sub. Optics blasted off. Aluminum Leg destroyed. Ion Engine destroyed. Battle Cannon destroyed. XM-7X0(R) suffers critical hit (Burn). XM-7X0(R) destroyed. Acquired 15 matter. Map ----- +----------------------------------------------------+ | ????????????????# ## ### | | ????????????????### ### # | | ??????????????????## ### # | | ???????????????????## #####?# # | | ????????????????????# ######?## | | ????????????????????## ### ???#### | | ??????????????#??????###?# " ??????## | | ??????????????# ?????????# ????????# | | ??????????????# ?????#### ????????? | | ??????????????# ????## #?????#### | | ??????????????# ##### ###"### # | | ??????????????# ### ## # | | ???????????????# ## | | ????????????????# # | | ?????????###????## # # | | ?????##??? "#???# # #### | | ????? !???# "??## ## ##?# | | ?????""##?#" ??# # ##?# | | ?????# ##" ###" ####??# | | ?????" #?# #< #????# | | ????#"" #?# # ##?#### | | ?????"X #?# # #### #### | | ?????"" #?# #" # ### #?### | | ?????? #### ## ### ?????? | | ??????? ##<[ # #?? ??????? | | ???????#/##%@ ## ##?# ???????# | | ???????#!##! <## ### ##???##### | | ???????#%%[ ! ### ##### #&% | | ???????#<%R< ### !! | | ???????#######?# | | ???????????????# ###### ### | | ??????????????# #????###?? | | ??????????????# ## #####????????? | | ??????????????# #####????????????? | | ??????????????# ##????????????????? | | ??????????????## #??????????????????? | | ???????????????##???????????????????? | | ????????????????????????????????????? | | ????????????????????????????????????? | | ????????????????????????????????????? | | ????????????????????????????????????? | | ????????????????????????????????????? | | ????????????????????????????????????? | | ????????????????????????????????????? | | ????????????????????????????????????? | | ????????????????????????????????????? | | ????????????????????????????????????? | | ????????????????????????????????????? | | ????????????????????????????????????? | | ????????????????????????????????????? | +----------------------------------------------------+ Best States ------------- Heat Dissipation 25 Energy Generation 10 Energy Capacity 250 Matter Stores 300 Matter Capacity 300 Sight Range 16 Terrain Scan Density 10 Resistance: KI 20 Resistance: TH 20 Resistance: EX 20 Resistance: EM 20 Resistance: I 20 Resistance: S 20 Resistance: P 20 Evasion (%) 55 Offensive Hacking 10 Item Schematics ----------------- None Robot Schematics ------------------ None Fabricated ------------ Nothing Repaired ---------- Nothing Alien Tech Used ----------------- None Achievements -------------- None Challenges ------------ None Game ------ Seed TeslaFrostDissipator Manual? 0 Play Time 00:06:07 Cumulative 160.0 hours Start 2025.10.10 @ 19:28:48 End 2025.10.10 @ 19:34:25 Sessions 1 Manual Loads 0 Difficulty Adventurer Special Mode None Game No. 131 Rogue 0 Adventurer 131 Explorer 0 Win Type - Total 4 Types 3/0/0/1/0/0/0/0/0/0 Lore% 64 Gallery% 62 Achievement% 58 Wizard Run 0 Options --------- Layout 1 ASCII 0 Keyboard 0 Movement Mouse Keybinds 0 Fullscreen 1 Font 24/Smallcaps Map View 50x35 Zoom Use 5% Tactical HUD 0 Map Filters NONE Filters NONE Steam 1 RUN: c3fa20d2-eca7-40ad-9390-b9bc062fae37